fUST/lending_fUST_20250915
["ID","MTS","AMOUNT","RATE_DAILY","PERIOD"]
[385467224,1757875838003,-362.37252743,0.00022473,2]
[385467226,1757875838012,-500.0,0.00022473,2]
[385467228,1757875838022,-500.0,0.00022473,2]
[385467230,1757875838031,-500.0,0.00022473,2]
[385467232,1757875838040,-500.0,0.00022473,2]
[385467234,1757875838049,-500.0,0.00022473,2]
[385467235,1757875838058,-501.09342471,0.00022473,2]
[385467237,1757875838068,-500.0,0.00022473,2]
[385467239,1757875838077,-500.0,0.00022473,2]
[385467241,1757875838086,-500.0,0.00022473,2]
[385467244,1757875838095,-500.93924965,0.00022473,2]
[385467246,1757875838104,-500.0,0.00022473,2]
[385467248,1757875838114,-500.0,0.00022473,2]
[385467250,1757875838124,-500.0,0.00022473,2]
[385467252,1757875838133,-500.0,0.00022473,2]
[385467254,1757875838142,-500.0,0.00022473,2]
[385467256,1757875838152,-500.0,0.00022473,2]
[385467257,1757875838161,-472.69707413,0.00022473,2]
[385467259,1757875838172,-500.0,0.00022473,2]
[385467261,1757875838182,-500.0,0.00022473,2]
[385467264,1757875838193,-500.0,0.00022473,2]
[385467266,1757875838202,-207.4190293,0.00022473,2]
[385467268,1757875838212,-500.0,0.00022473,2]
[385467270,1757875838222,-3000.0,0.0002248,2]
[385467271,1757875838232,-3000.0,0.0002249,2]
[385467289,1757875838380,-914.19273169,0.000225,7]
[385467304,1757875838514,-2090.2215016,0.000225,7]
[385467349,1757875838932,-187.78782616,0.00021436,2]
[385467351,1757875838941,-500.0,0.00021436,2]
[385467353,1757875838951,-500.0,0.00021436,2]
[385467355,1757875838960,-500.0,0.00021436,2]
[385467357,1757875838970,-500.0,0.00021436,2]
[385467359,1757875838979,-500.0,0.00021436,2]
[385467361,1757875838989,-500.0,0.00021436,2]
[385467363,1757875838998,-500.0,0.00021436,2]
[385467365,1757875839007,-500.0,0.00021436,2]
[385467367,1757875839017,-154.35459208,0.00021436,2]
[385467369,1757875839026,-407.55151828,0.00021436,2]
[385467371,1757875839036,-500.0,0.00021436,2]
[385467373,1757875839045,-500.0,0.00021436,2]
[385467375,1757875839055,-500.0,0.00021436,2]
[385467377,1757875839065,-231.92187479,0.00021436,2]
[385467379,1757875839074,-632.01238194,0.00021436,2]
[385467381,1757875839083,-477.30494317,0.00021436,2]
[385467383,1757875839092,-500.0,0.00021436,2]
[385467385,1757875839102,-500.0,0.00021436,2]
[385467387,1757875839111,-500.0,0.00021436,2]
[385467389,1757875839121,-500.0,0.00021436,2]
[385467391,1757875839131,-500.0,0.00021436,2]
[385467393,1757875839140,-500.0,0.00021436,2]
[385467395,1757875839149,-500.0,0.00021436,2]
[385467397,1757875839159,-500.0,0.00021436,2]
[385467399,1757875839168,-500.0,0.00021436,2]
[385467401,1757875839178,-500.0,0.00021436,2]
[385467404,1757875839187,-500.0,0.00021436,2]
[385467406,1757875839197,-309.29345401,0.00021436,2]
[385467408,1757875839206,-500.0,0.00021436,2]
[385467410,1757875839215,-500.0,0.00021436,2]
[385467412,1757875839224,-500.0,0.00021436,2]
[385467414,1757875839233,-500.0,0.00021436,2]
[385467415,1757875839242,-500.0,0.00021436,2]
[385467417,1757875839252,-500.0,0.00021436,2]
[385467420,1757875839261,-500.0,0.00021436,2]
[385467422,1757875839271,-5285.64930175,0.000225,7]
[385467424,1757875839282,-28396.69646496,0.000225,7]
[385467426,1757875839291,-3000.0,0.000225,2]
[385467428,1757875839302,-151.0,0.000225,5]
[385467430,1757875839311,-1001.747633,0.000225,2]
[385467432,1757875839322,-3000.0,0.0002251,2]
[385467434,1757875839332,-163.55172474,0.00022515,3]
[385467436,1757875839341,-3000.0,0.0002252,2]
[385467438,1757875839350,-3000.0,0.0002253,2]
[385467440,1757875839359,-500.0,0.00022535,2]
[385467442,1757875839369,-3000.0,0.0002254,2]
[385467444,1757875839378,-3000.0,0.0002255,2]
[385467446,1757875839387,-336.0,0.0002255,2]
[385467448,1757875839397,-3000.0,0.0002256,2]
[385467450,1757875839407,-3000.0,0.0002257,2]
[385467452,1757875839416,-3000.0,0.0002258,2]
[385467454,1757875839425,-3000.0,0.0002259,2]
[385467456,1757875839434,-3000.0,0.000226,2]
[385467458,1757875839443,-3000.0,0.0002261,2]
[385467460,1757875839452,-3000.0,0.0002262,2]
[385467462,1757875839461,-3000.0,0.0002263,2]
[385467464,1757875839470,-3000.0,0.0002264,2]
[385467466,1757875839479,-3000.0,0.0002265,2]
[385467468,1757875839488,-3000.0,0.0002266,2]
[385467470,1757875839498,-3000.0,0.0002267,2]
[385467472,1757875839507,-336.0,0.00022672,2]
[385467474,1757875839517,-3000.0,0.0002268,2]
[385467476,1757875839526,-3000.0,0.0002269,2]
[385467478,1757875839535,-3000.0,0.000227,2]
[385467480,1757875839544,-3000.0,0.0002271,2]
[385467482,1757875839554,-3000.0,0.0002272,2]
[385467484,1757875839563,-3000.0,0.0002273,2]
[385467487,1757875839572,-245.0,0.00022739,2]
[385467489,1757875839586,-244.85481629,0.00022739,2]
[385467490,1757875839595,-244.42894391,0.00022739,2]
[385467492,1757875839604,-151.0,0.00022739,2]
[385467494,1757875839613,-642.29891301,0.00022739,2]
[385467496,1757875839623,-267.41440157,0.00022739,2]
[385467498,1757875839632,-151.0,0.00022739,2]
[385467500,1757875839641,-151.0,0.00022739,2]
[385467503,1757875839650,-502.31691441,0.00022739,2]
[385467505,1757875839661,-500.0,0.00022739,2]
[385467507,1757875839670,-1245.0,0.00022739,2]
[385467509,1757875839680,-151.0,0.00022739,2]
[385467511,1757875839689,-659.2,0.00022739,3]
[385467513,1757875839698,-480.0,0.00022739,3]
[385467515,1757875839707,-800.9,0.00022739,3]
[385467517,1757875839717,-480.0,0.00022739,3]
[385467519,1757875839726,-480.0,0.00022739,3]
[385467521,1757875839735,-480.0,0.00022739,3]
[385467522,1757875839744,-480.0,0.00022739,3]
[385467524,1757875839753,-480.0,0.00022739,3]
[385467527,1757875839763,-480.0,0.00022739,3]
[385467529,1757875839772,-480.21,0.00022739,3]
[385467531,1757875839781,-480.0,0.00022739,3]
[385467533,1757875839790,-837.19,0.00022739,3]
[385467535,1757875839799,-843.87,0.00022739,3]
[385467537,1757875839808,-480.0,0.00022739,3]
[385467539,1757875839818,-536.13,0.00022739,3]
[385467541,1757875839827,-543.25,0.00022739,3]
[385467543,1757875839837,-480.0,0.00022739,3]
[385467545,1757875839846,-481.47,0.00022739,3]
[385467547,1757875839855,-218.8312306,0.00022739,3]
[385467549,1757875839865,-480.0,0.00022739,3]
[385467551,1757875839874,-480.0,0.00022739,3]
[385467553,1757875839884,-480.0,0.00022739,3]
[385467555,1757875839894,-480.0,0.00022739,3]
[385467557,1757875839904,-677.92,0.00022739,3]
[385467559,1757875839913,-686.25,0.00022739,3]
[385467561,1757875839922,-480.0,0.00022739,3]
[385467563,1757875839931,-549.03,0.00022739,3]
[385467565,1757875839940,-578.78,0.00022739,3]
[385467567,1757875839949,-480.0,0.00022739,3]
[385467569,1757875839958,-480.0,0.00022739,3]
[385467571,1757875839967,-957.49,0.00022739,3]
[385467573,1757875839976,-480.0,0.00022739,3]
[385467575,1757875839985,-1187.35,0.00022739,3]
[385467577,1757875839994,-501.46,0.00022739,3]
[385467579,1757875840004,-723.7,0.00022739,3]
[385467581,1757875840013,-480.0,0.00022739,3]
[385467583,1757875840022,-480.0,0.00022739,3]
[385467585,1757875840031,-507.78,0.00022739,3]
[385467587,1757875840041,-480.0,0.00022739,3]
[385467589,1757875840050,-480.0,0.00022739,3]
[385467591,1757875840060,-480.0,0.00022739,3]
[385467593,1757875840069,-688.94,0.00022739,3]
[385467595,1757875840078,-291.9978694,0.00022739,3]
[385467597,1757875840087,-748.23,0.00022739,3]
[385467599,1757875840096,-647.32,0.00022739,3]
[385467601,1757875840105,-760.99,0.00022739,3]
[385467603,1757875840114,-480.0,0.00022739,3]
[385467605,1757875840123,-752.72,0.00022739,3]
[385467606,1757875840132,-208.96988658,0.00022739,3]
[385467607,1757875840141,-1323.82,0.00022739,3]
[385467608,1757875840151,-18477.26,0.00022739,3]
[385467609,1757875840160,-480.0,0.00022739,3]
[385467610,1757875840169,-661.87,0.00022739,3]
[385467611,1757875840178,-5184.45,0.00022739,3]
[385467612,1757875840187,-1075.83,0.00022739,3]
[385467613,1757875840196,-480.0,0.00022739,3]
[385467614,1757875840205,-1145.91,0.00022739,3]
[385467615,1757875840215,-3187.56,0.00022739,3]
[385467616,1757875840224,-2196.52,0.00022739,3]
[385467617,1757875840233,-480.0,0.00022739,3]
[385467618,1757875840242,-480.0,0.00022739,3]
[385467619,1757875840251,-480.0,0.00022739,3]
[385467620,1757875840260,-600.99,0.00022739,3]
[385467621,1757875840270,-486.05,0.00022739,3]
[385467622,1757875840279,-782.37,0.00022739,3]
[385467623,1757875840289,-1192.55,0.00022739,3]
[385467624,1757875840298,-1915.39,0.00022739,3]
[385467625,1757875840307,-930.55,0.00022739,3]
[385467626,1757875840316,-480.0,0.00022739,3]
[385467627,1757875840325,-1182.58,0.00022739,3]
[385467628,1757875840336,-480.0,0.00022739,3]
[385467629,1757875840345,-977.32,0.00022739,3]
[385467630,1757875840354,-1761.11,0.00022739,3]
[385467631,1757875840364,-480.0,0.00022739,3]
[385467632,1757875840373,-480.0,0.00022739,3]
[385467634,1757875840383,-2308.49,0.00022739,3]
[385467636,1757875840392,-480.0,0.00022739,3]
[385467638,1757875840401,-2477.98,0.00022739,3]
[385467640,1757875840410,-480.0,0.00022739,3]
[385467642,1757875840420,-532.92,0.00022739,3]
[385467644,1757875840431,-619.39,0.00022739,3]
[385467646,1757875840441,-480.0,0.00022739,3]
[385467648,1757875840450,-3200.87,0.00022739,3]
[385467649,1757875840460,-480.0,0.00022739,3]
[385467651,1757875840469,-480.0,0.00022739,3]
[385467653,1757875840478,-742.0,0.00022739,3]
[385467655,1757875840487,-5418.24,0.00022739,3]
[385467658,1757875840497,-10831.61,0.00022739,3]
[385467660,1757875840506,-980.6,0.00022739,3]
[385467662,1757875840517,-480.0,0.00022739,3]
[385467664,1757875840526,-990.4,0.00022739,3]
[385467666,1757875840535,-2118.12,0.00022739,3]
[385467668,1757875840544,-648.48,0.00022739,3]
[385467670,1757875840553,-480.0,0.00022739,3]
[385467672,1757875840562,-1753.61,0.00022739,3]
[385467674,1757875840572,-2217.39,0.00022739,3]
[385467676,1757875840584,-723.24,0.00022739,3]
[385467678,1757875840594,-624.0,0.00022739,3]
[385467680,1757875840603,-873.86,0.00022739,3]
[385467681,1757875840612,-756.36,0.00022739,3]
[385467684,1757875840621,-1061.69,0.00022739,3]
[385467685,1757875840630,-620.9,0.00022739,3]
[385467687,1757875840639,-489.84,0.00022739,3]
[385467689,1757875840647,-1209.86,0.00022739,3]
[385467691,1757875840657,-1819.51,0.00022739,3]
[385467693,1757875840666,-1462.4,0.00022739,3]
[385467695,1757875840675,-480.0,0.00022739,3]
[385467697,1757875840684,-1835.64,0.00022739,3]
[385467699,1757875840694,-2174.04,0.00022739,3]
[385467701,1757875840703,-4330.89,0.00022739,3]
[385467703,1757875840712,-830.38,0.00022739,3]
[385467705,1757875840721,-480.0,0.00022739,3]
[385467707,1757875840731,-480.0,0.00022739,3]
[385467709,1757875840740,-1004.76,0.00022739,3]
[385467711,1757875840750,-883.33,0.00022739,3]
[385467713,1757875840759,-931.23,0.00022739,3]
[385467715,1757875840768,-865.96,0.00022739,3]
[385467717,1757875840777,-480.0,0.00022739,3]
[385467719,1757875840786,-576.88,0.00022739,3]
[385467721,1757875840796,-619.75,0.00022739,3]
[385467723,1757875840805,-480.0,0.00022739,3]
[385467725,1757875840815,-1428.65,0.00022739,3]
[385467727,1757875840824,-807.89,0.00022739,3]
[385467729,1757875840833,-480.0,0.00022739,3]
[385467731,1757875840843,-480.0,0.00022739,3]
[385467733,1757875840853,-480.0,0.00022739,3]
[385467735,1757875840862,-588.34,0.00022739,3]
[385467738,1757875840871,-644.02,0.00022739,3]
[385467740,1757875840881,-3074.05,0.00022739,3]
[385467742,1757875840890,-594.77,0.00022739,3]
[385467743,1757875840900,-480.0,0.00022739,3]
[385467746,1757875840909,-933.74,0.00022739,3]
[385467747,1757875840919,-3000.0,0.0002274,2]
[385467750,1757875840929,-3000.0,0.0002275,2]
[385467752,1757875840938,-3000.0,0.0002276,2]
[385467753,1757875840948,-160.0,0.00022767,2]
[385467755,1757875840957,-189.96659438,0.00022768,2]
[385467757,1757875840966,-1500.0,0.00022768,2]
[385467759,1757875840975,-500.0,0.00022768,2]
[385467761,1757875840984,-1500.0,0.00022768,2]
[385467763,1757875840994,-1500.0,0.00022768,2]
[385467765,1757875841003,-1500.0,0.00022768,2]
[385467767,1757875841012,-1500.0,0.00022768,2]
[385467769,1757875841022,-1500.0,0.00022768,2]
[385467771,1757875841032,-1500.0,0.00022768,2]
[385467773,1757875841041,-188.84353114,0.00022768,2]
[385467775,1757875841050,-947.89794296,0.00022768,2]
[385467777,1757875841060,-3000.0,0.0002277,2]
[385467779,1757875841069,-3000.0,0.0002278,2]
[385467781,1757875841079,-3000.0,0.0002279,2]
[385467783,1757875841088,-1265.28,0.000228,3]
[385467785,1757875841097,-632.64,0.000228,3]
[385467787,1757875841107,-316.32,0.000228,3]
[385467789,1757875841117,-3000.0,0.000228,2]
[385467791,1757875841127,-2218.15,0.000228,7]
[385467793,1757875841136,-500.0,0.00022809,2]
[385467795,1757875841146,-3000.0,0.0002281,2]
[385467797,1757875841156,-3000.0,0.0002282,2]
[385467799,1757875841165,-3000.0,0.0002283,2]
[385467801,1757875841175,-4184.583654,0.0002284,2]
[385467803,1757875841184,-1000.0,0.00022841,2]
[385467805,1757875841194,-5000.0,0.00022841,2]
[385467807,1757875841203,-672.0,0.00022842,2]
[385467809,1757875841213,-9240.75261491,0.00022913,2]
[385467811,1757875841222,-501.52711983,0.00022948,2]
[385467813,1757875841231,-2000.0,0.00023,2]
[385467815,1757875841240,-2000.0,0.00023,2]
[385467817,1757875841250,-847.27885267,0.00023,3]
[385467819,1757875841259,-233.1999649,0.00023,3]
[385467821,1757875841269,-2604.76,0.00023,2]
[385467823,1757875841278,-1000.0,0.00023,2]
[385467825,1757875841288,-204.0,0.00023,7]
[385467827,1757875841297,-217.77739939,0.00023,3]
[385467829,1757875841306,-204.93562152,0.00023013,2]
[385467831,1757875841316,-245.0,0.00023013,2]
[385467833,1757875841325,-151.0,0.00023013,2]
[385467835,1757875841335,-500.0,0.00023013,2]
[385467837,1757875841344,-1245.0,0.00023013,2]
[385467839,1757875841353,-151.0,0.00023013,2]
[385467841,1757875841363,-659.2,0.00023013,3]
[385467844,1757875841372,-480.0,0.00023013,3]
[385467846,1757875841382,-800.9,0.00023013,3]
[385467847,1757875841391,-480.0,0.00023013,3]
[385467849,1757875841400,-480.0,0.00023013,3]
[385467851,1757875841409,-480.0,0.00023013,3]
[385467853,1757875841420,-480.0,0.00023013,3]
[385467856,1757875841430,-480.0,0.00023013,3]
[385467857,1757875841439,-480.0,0.00023013,3]
[385467859,1757875841448,-480.21,0.00023013,3]
[385467861,1757875841457,-480.0,0.00023013,3]
[385467863,1757875841467,-837.19,0.00023013,3]
[385467866,1757875841476,-843.87,0.00023013,3]
[385467868,1757875841485,-480.0,0.00023013,3]
[385467869,1757875841494,-536.13,0.00023013,3]
[385467871,1757875841503,-543.25,0.00023013,3]
[385467888,1757875841649,-480.0,0.00023013,3]
[385467890,1757875841658,-481.47,0.00023013,3]
[385467892,1757875841668,-480.0,0.00023013,3]
[385467894,1757875841677,-480.0,0.00023013,3]
[385467896,1757875841687,-480.0,0.00023013,3]
[385467898,1757875841696,-480.0,0.00023013,3]
[385467900,1757875841705,-677.92,0.00023013,3]
[385467902,1757875841714,-686.25,0.00023013,3]
[385467904,1757875841723,-480.0,0.00023013,3]
[385467906,1757875841733,-549.03,0.00023013,3]
[385467908,1757875841742,-578.78,0.00023013,3]
[385467910,1757875841752,-480.0,0.00023013,3]
[385467912,1757875841762,-480.0,0.00023013,3]
[385467914,1757875841771,-957.49,0.00023013,3]
[385467916,1757875841780,-480.0,0.00023013,3]
[385467918,1757875841789,-1187.35,0.00023013,3]
[385467920,1757875841798,-501.46,0.00023013,3]
[385467922,1757875841807,-723.7,0.00023013,3]
[385467924,1757875841817,-480.0,0.00023013,3]
[385467926,1757875841826,-480.0,0.00023013,3]
[385467928,1757875841836,-507.78,0.00023013,3]
[385467930,1757875841845,-480.0,0.00023013,3]
[385467932,1757875841855,-480.0,0.00023013,3]
[385467934,1757875841865,-480.0,0.00023013,3]
[385467936,1757875841876,-688.94,0.00023013,3]
[385467938,1757875841886,-748.23,0.00023013,3]
[385467940,1757875841903,-647.32,0.00023013,3]
[385467941,1757875841938,-760.99,0.00023013,3]
[385467943,1757875841964,-480.0,0.00023013,3]
[385467944,1757875841974,-752.72,0.00023013,3]
[385467946,1757875841984,-1323.82,0.00023013,3]
[385467948,1757875841994,-18477.26,0.00023013,3]
[385467950,1757875842003,-480.0,0.00023013,3]
[385467952,1757875842012,-661.87,0.00023013,3]
[385467954,1757875842022,-5184.45,0.00023013,3]
[385467956,1757875842031,-1075.83,0.00023013,3]
[385467958,1757875842040,-480.0,0.00023013,3]
[385467960,1757875842049,-1145.91,0.00023013,3]
[385467961,1757875842060,-3187.56,0.00023013,3]
[385467963,1757875842070,-2196.52,0.00023013,3]
[385467965,1757875842079,-480.0,0.00023013,3]
[385467967,1757875842088,-480.0,0.00023013,3]
[385467969,1757875842097,-480.0,0.00023013,3]
[385467971,1757875842107,-600.99,0.00023013,3]
[385467973,1757875842116,-486.05,0.00023013,3]
[385467975,1757875842125,-782.37,0.00023013,3]
[385467977,1757875842135,-1192.55,0.00023013,3]
[385467979,1757875842144,-1915.39,0.00023013,3]
[385467981,1757875842154,-480.0,0.00023013,3]
[385467983,1757875842164,-930.55,0.00023013,3]
[385467985,1757875842173,-1182.58,0.00023013,3]
[385467987,1757875842182,-480.0,0.00023013,3]
[385467990,1757875842191,-977.32,0.00023013,3]
[385467991,1757875842201,-1761.11,0.00023013,3]
[385467993,1757875842210,-480.0,0.00023013,3]
[385467995,1757875842220,-480.0,0.00023013,3]
[385467997,1757875842229,-2308.49,0.00023013,3]
[385468000,1757875842239,-480.0,0.00023013,3]
[385468003,1757875842248,-2477.98,0.00023013,3]
[385468005,1757875842257,-480.0,0.00023013,3]
[385468007,1757875842268,-532.92,0.00023013,3]
[385468009,1757875842280,-619.39,0.00023013,3]
[385468011,1757875842289,-480.0,0.00023013,3]
[385468013,1757875842299,-3200.87,0.00023013,3]
[385468015,1757875842308,-480.0,0.00023013,3]
[385468017,1757875842317,-480.0,0.00023013,3]
[385468019,1757875842327,-742.0,0.00023013,3]
[385468021,1757875842336,-5418.24,0.00023013,3]
[385468023,1757875842345,-10831.61,0.00023013,3]
[385468025,1757875842354,-480.0,0.00023013,3]
[385468027,1757875842363,-990.4,0.00023013,3]
[385468029,1757875842372,-980.6,0.00023013,3]
[385468031,1757875842382,-2118.12,0.00023013,3]
[385468033,1757875842391,-648.48,0.00023013,3]
[385468035,1757875842400,-480.0,0.00023013,3]
[385468037,1757875842409,-1753.61,0.00023013,3]
[385468039,1757875842420,-2217.39,0.00023013,3]
[385468041,1757875842430,-723.24,0.00023013,3]
[385468043,1757875842439,-624.0,0.00023013,3]
[385468045,1757875842448,-873.86,0.00023013,3]
[385468047,1757875842459,-756.36,0.00023013,3]
[385468049,1757875842470,-1061.69,0.00023013,3]
[385468051,1757875842479,-620.9,0.00023013,3]
[385468053,1757875842489,-489.84,0.00023013,3]
[385468055,1757875842498,-1209.86,0.00023013,3]
[385468057,1757875842507,-1819.51,0.00023013,3]
[385468059,1757875842516,-1462.4,0.00023013,3]
[385468062,1757875842526,-480.0,0.00023013,3]
[385468064,1757875842536,-1835.64,0.00023013,3]
[385468066,1757875842545,-2174.04,0.00023013,3]
[385468068,1757875842555,-4330.89,0.00023013,3]
[385468070,1757875842564,-830.38,0.00023013,3]
[385468072,1757875842573,-480.0,0.00023013,3]
[385468074,1757875842588,-480.0,0.00023013,3]
[385468076,1757875842597,-1004.76,0.00023013,3]
[385468078,1757875842606,-883.33,0.00023013,3]
[385468080,1757875842615,-931.23,0.00023013,3]
[385468082,1757875842626,-865.96,0.00023013,3]
[385468084,1757875842635,-480.0,0.00023013,3]
[385468086,1757875842644,-576.88,0.00023013,3]
[385468088,1757875842655,-619.75,0.00023013,3]
[385468090,1757875842665,-480.0,0.00023013,3]
[385468092,1757875842675,-1428.65,0.00023013,3]
[385468094,1757875842684,-807.89,0.00023013,3]
[385468096,1757875842694,-480.0,0.00023013,3]
[385468098,1757875842703,-480.0,0.00023013,3]
[385468100,1757875842713,-480.0,0.00023013,3]
[385468102,1757875842722,-588.34,0.00023013,3]
[385468104,1757875842731,-644.02,0.00023013,3]
[385468106,1757875842740,-3074.05,0.00023013,3]
[385468108,1757875842750,-594.77,0.00023013,3]
[385468110,1757875842759,-480.0,0.00023013,3]
[385468112,1757875842768,-933.74,0.00023013,3]
[385468114,1757875842778,-502.17324957,0.00023021,2]
[385468116,1757875842787,-1000.0,0.00023021,2]
[385468118,1757875842796,-1000.0,0.00023021,2]
[385468120,1757875842805,-500.0,0.00023021,2]
[385468122,1757875842814,-1000.0,0.00023021,2]
[385468124,1757875842823,-1000.0,0.00023021,2]
[385468126,1757875842833,-1000.0,0.00023021,2]
[385468128,1757875842843,-1000.0,0.00023021,2]
[385468130,1757875842852,-513.23307313,0.00023021,2]
[385468132,1757875842862,-847.53221149,0.00023021,2]
[385468134,1757875842871,-1000.0,0.00023021,2]
[385468136,1757875842881,-1000.0,0.00023021,2]
[385468138,1757875842890,-501.4894832,0.00023021,2]
[385468140,1757875842900,-501.76531383,0.00023021,2]
[385468142,1757875842909,-541.30234502,0.00023021,2]
[385468144,1757875842919,-1000.0,0.00023021,2]
[385468146,1757875842928,-1000.0,0.00023021,2]
[385468148,1757875842937,-1000.0,0.00023021,2]
[385468150,1757875842947,-1000.0,0.00023021,2]
[385468152,1757875842956,-1000.0,0.00023021,2]
[385468154,1757875842966,-1000.0,0.00023021,2]
[385468156,1757875842975,-1000.0,0.00023021,2]
[385468158,1757875842984,-1000.0,0.00023021,2]
[385468160,1757875842994,-1002.59796,0.00023021,2]
[385468162,1757875843003,-1000.0,0.00023021,2]
[385468164,1757875843012,-1000.0,0.00023021,2]
[385468166,1757875843022,-1000.0,0.00023021,2]
[385468168,1757875843031,-1000.0,0.00023021,2]
[385468170,1757875843041,-730.35488053,0.00023021,2]
[385468172,1757875843051,-1000.0,0.00023021,2]
[385468174,1757875843060,-1000.0,0.00023021,2]
[385468176,1757875843070,-1000.0,0.00023021,2]
[385468178,1757875843080,-1000.0,0.00023021,2]
[385468180,1757875843089,-1000.0,0.00023021,2]
[385468182,1757875843098,-500.59437154,0.00023021,2]
[385468184,1757875843107,-1000.0,0.00023021,2]
[385468186,1757875843115,-1001.59768713,0.00023021,2]
[385468188,1757875843124,-500.65147977,0.00023021,2]
[385468190,1757875843134,-1000.0,0.00023021,2]
[385468192,1757875843143,-1000.66439281,0.00023021,2]
[385468194,1757875843153,-620.57,0.00023053,2]
[385468196,1757875843162,-500.0,0.00023058,2]
[385468198,1757875843172,-168.0,0.00023069,2]
[385468199,1757875843181,-500.0,0.00023083,2]
[385468200,1757875843190,-1047.66,0.000231,7]
[385468201,1757875843199,-186.86257978,0.00023112,2]
[385468202,1757875843208,-5888.0,0.00023121,2]
[385468203,1757875843217,-151.0,0.00023174,3]
[385468204,1757875843226,-672.0,0.00023176,2]
[385468205,1757875843235,-336.0,0.00023286,2]
[385468206,1757875843244,-163.0,0.00023287,2]
[385468207,1757875843253,-598.16985905,0.00023287,2]
[385468208,1757875843262,-1245.0,0.00023287,2]
[385468209,1757875843271,-151.0,0.00023287,2]
[385468210,1757875843280,-659.2,0.00023287,3]
[385468211,1757875843290,-480.0,0.00023287,3]
[385468212,1757875843299,-800.9,0.00023287,3]
[385468213,1757875843309,-480.0,0.00023287,3]
[385468214,1757875843318,-480.0,0.00023287,3]
[385468215,1757875843327,-480.0,0.00023287,3]
[385468216,1757875843336,-294.92875363,0.00023287,3]
[385468217,1757875843346,-480.0,0.00023287,3]
[385468218,1757875843355,-480.0,0.00023287,3]
[385468219,1757875843364,-480.21,0.00023287,3]
[385468220,1757875843374,-480.0,0.00023287,3]
[385468222,1757875843383,-837.19,0.00023287,3]
[385468224,1757875843392,-843.87,0.00023287,3]
[385468226,1757875843402,-357.75164448,0.00023287,3]
[385468228,1757875843412,-536.13,0.00023287,3]
[385468230,1757875843421,-543.25,0.00023287,3]
[385468232,1757875843431,-480.0,0.00023287,3]
[385468234,1757875843441,-481.47,0.00023287,3]
[385468236,1757875843451,-480.0,0.00023287,3]
[385468238,1757875843461,-480.0,0.00023287,3]
[385468240,1757875843471,-480.0,0.00023287,3]
[385468242,1757875843480,-480.0,0.00023287,3]
[385468244,1757875843489,-677.92,0.00023287,3]
[385468246,1757875843499,-686.25,0.00023287,3]
[385468248,1757875843508,-480.0,0.00023287,3]
[385468250,1757875843518,-549.03,0.00023287,3]
[385468252,1757875843527,-578.78,0.00023287,3]
[385468254,1757875843537,-480.0,0.00023287,3]
[385468256,1757875843547,-480.0,0.00023287,3]
[385468258,1757875843556,-957.49,0.00023287,3]
[385468260,1757875843565,-480.0,0.00023287,3]